bitfinex/quotes_SOLUSD_20250712
["timestamp","ask_amount","ask_price","bid_price","bid_amount"]
[1752324604165,145.5,159.17,159.08,8.4069]
[1752324604366,145.5,159.16,159.09,0.65]
[1752324604566,0.03,159.22,159.09,0.65]
[1752324604789,16.78468397,159.2,159.09,0.65]
[1752324604960,0.03,159.19,159.09,0.65]
[1752324605361,0.03,159.19,159.08,6.1961]
[1752324605898,4.05880116,159.19,159.08,6.8461]
[1752324606094,0.03,159.19,159.08,6.8461]
[1752324606302,140.0,159.18,159.08,6.8461]
[1752324606805,0.03,159.17,159.08,6.8461]
[1752324607164,4.47581048,159.16,159.09,0.65]
[1752324607492,4.47581048,159.15,159.09,0.65]
[1752324607681,4.47731968,159.14,159.09,0.65]
[1752324607865,4.47731968,159.13,159.1,0.65]
[1752324608186,4.47731968,159.12,159.11,0.65]
[1752324608584,4.47731968,159.12,159.08,6.1961]
[1752324608797,4.03119345,159.21,159.12,1.6449]
[1752324609085,4.48052532,159.2,159.13,0.65]
[1752324609996,8.51237385,159.2,159.13,0.65]
[1752324610168,4.48052532,159.19,159.13,0.65]
[1752324610582,6.1961,159.24,159.14,32.5810226]
[1752324610777,4.48348133,159.23,159.15,0.65]
[1752324610991,6.1961,159.31,159.16,26.0799226]
[1752324611199,4.48407258,159.3,159.18,16.78468397]
[1752324611410,4.48407258,159.3,159.19,0.65]
[1752324611887,0.03,159.26,159.19,0.65]
[1752324612263,4.48407258,159.27,159.22,16.78468397]
[1752324612463,4.0311066,159.33,159.24,16.78468397]
[1752324612762,10.227949,159.37,159.26,16.78468397]
[1752324612962,10.227949,159.37,159.27,0.65]
[1752324613389,0.06,159.37,159.27,0.65]
[1752324614105,10.287949,159.37,159.24,0.68]
[1752324614309,14.2590556,159.37,159.26,0.68]
[1752324614480,4.0911066,159.4,159.26,0.68]
[1752324614680,20.8757906,159.4,159.26,0.68]
[1752324614879,4.0311066,159.39,159.26,0.68]
[1752324615281,0.06,159.38,159.26,0.68]
[1752324615601,4.0311066,159.39,159.26,0.68]
[1752324615981,4.0311066,159.39,159.27,16.78468397]
[1752324616175,0.2,159.42,159.31,16.78468397]
[1752324616604,0.2,159.42,159.3,1.5509]
[1752324616605,0.2,159.42,159.33,16.78468397]
[1752324616796,0.2,159.42,159.34,0.68]
[1752324618181,0.2,159.42,159.35,23.29078397]
[1752324618410,0.2,159.42,159.36,0.68]
[1752324618814,0.2,159.42,159.37,16.78468397]
[1752324618992,0.2,159.42,159.38,0.68]
[1752324619316,0.2,159.5,159.39,18.33558397]
[1752324619480,0.2,159.5,159.4,0.68]
[1752324619682,8.38387722,159.56,159.42,16.78468397]
[1752324620004,18.81362338,159.56,159.44,16.78468397]
[1752324620206,14.460737,159.56,159.45,0.68]
[1752324620376,8.59244523,159.57,159.45,0.68]
[1752324621115,8.59244523,159.57,159.46,16.78468397]
[1752324621317,4.02032286,159.59,159.47,0.68]
[1752324621502,4.98756857,159.6,159.47,0.68]
[1752324621691,0.06,159.59,159.47,0.68]
[1752324622115,20.86500686,159.62,159.48,16.78468397]
[1752324622292,4.02032286,159.61,159.49,0.68]
[1752324622492,156.844684,159.62,159.49,0.68]
[1752324623025,4.00460459,159.61,159.49,0.68]
[1752324623193,0.06,159.6,159.49,0.68]
[1752324623817,4.00021693,159.61,159.49,0.68]
[1752324624125,16.784684,159.62,159.49,0.68]
[1752324624298,21.83930871,159.62,159.49,0.68]
[1752324624499,5.11462471,159.62,159.49,0.68]
[1752324624691,21.89930871,159.62,159.51,7.6205]
[1752324624892,21.89930871,159.62,159.52,0.68]
[1752324624893,16.784684,159.62,159.52,0.68]
[1752324625133,16.78468397,159.64,159.52,0.68]
[1752324625293,16.844684,159.63,159.52,0.68]
[1752324625616,4.96724222,159.63,159.52,0.68]
[1752324625820,16.78468397,159.64,159.52,0.68]
[1752324625821,16.84468397,159.64,159.52,0.68]
[1752324626511,33.62936797,159.64,159.52,0.68]
[1752324626808,0.06,159.64,159.52,0.68]
[1752324627007,4.99837851,159.64,159.52,0.68]
[1752324627212,33.56936797,159.65,159.52,0.68]
[1752324627526,16.78468397,159.64,159.52,0.68]
[1752324627819,16.84468397,159.64,159.52,0.68]
[1752324627991,0.06,159.64,159.52,0.68]
[1752324629030,16.78468397,159.63,159.52,0.68]
[1752324629547,0.06,159.62,159.51,7.6205]
[1752324629703,0.06,159.62,159.51,8.3005]
[1752324632031,0.06,159.62,159.51,6.0263]
[1752324632233,35.53468397,159.61,159.46,6.0856]
[1752324632407,16.78468397,159.59,159.46,6.0856]
[1752324632608,0.06,159.58,159.47,0.68]
[1752324633005,16.84468397,159.58,159.46,6.0856]
[1752324633228,4.05039493,159.57,159.46,6.0856]
[1752324633505,4.05039493,159.57,159.47,0.68]
[1752324633506,0.06,159.56,159.47,0.68]
[1752324633721,6.1456,159.59,159.47,0.68]
[1752324633936,16.78468397,159.58,159.47,0.68]
[1752324634228,0.06,159.57,159.47,0.68]
[1752324634714,16.78468397,159.58,159.47,0.68]
[1752324635117,156.78468397,159.58,159.47,0.68]
[1752324635312,6.1156,159.59,159.48,16.78468397]
[1752324635531,6.1156,159.59,159.49,0.68]
[1752324636839,35.59468397,159.58,159.49,0.68]
[1752324637909,0.06,159.57,159.46,6.7656]
[1752324638112,0.06,159.57,159.47,0.68]
[1752324638324,158.75,159.58,159.47,0.68]
[1752324638522,18.75,159.58,159.47,0.68]
[1752324639213,6.1156,159.59,159.47,0.68]
[1752324639842,0.03,159.59,159.48,16.78468397]
[1752324640031,6.1156,159.59,159.49,0.68]
[1752324640344,0.03,159.59,159.51,6.0856]
[1752324640526,0.03,159.59,159.52,0.68]
[1752324640839,16.814684,159.59,159.52,0.68]
[1752324641613,0.03,159.59,159.52,0.68]
[1752324641826,0.03,159.59,159.51,6.0856]
[1752324642038,16.814684,159.59,159.51,6.0856]
[1752324642347,0.06,159.58,159.51,6.0856]
[1752324642729,18.75,159.57,159.51,6.0856]
[1752324642953,35.59468397,159.56,159.45,1.549]
[1752324643249,18.75,159.51,159.45,1.549]
[1752324643543,18.81,159.51,159.45,1.549]
[1752324643719,35.53468397,159.5,159.45,1.549]
[1752324643923,0.06,159.49,159.39,1.6441]
[1752324644834,4.05915576,159.49,159.39,2.2941]
[1752324645043,35.53468397,159.48,159.39,2.2941]
[1752324645645,0.06,159.47,159.39,1.6441]
[1752324646118,18.75,159.52,159.4,6.9927]
[1752324646317,4.00227961,159.51,159.41,0.65]
[1752324646518,4.00227961,159.55,159.41,0.65]
[1752324646751,14.924382,159.49,159.41,0.65]
[1752324647045,145.5,159.48,159.41,0.65]
[1752324649360,14.924382,159.49,159.41,0.65]
[1752324649646,0.06,159.55,159.41,0.65]
[1752324649647,35.59468397,159.55,159.41,0.65]
[1752324649850,6.3427,159.49,159.41,0.65]
[1752324650057,4.01217701,159.54,159.41,0.65]
[1752324650357,6.3427,159.53,159.42,16.78468397]
[1752324650653,6.4027,159.53,159.43,0.65]
[1752324650861,10.41487701,159.53,159.43,0.65]
[1752324651426,18.75,159.52,159.43,0.65]
[1752324652241,22.77671693,159.51,159.43,0.65]
[1752324652558,18.75,159.49,159.4,6.9927]
[1752324652744,18.75,159.47,159.4,6.3427]
[1752324653046,18.75,159.45,159.4,6.3427]
[1752324653341,22.77671693,159.44,159.4,6.3427]
[1752324653563,0.06,159.48,159.4,6.9927]
[1752324653724,18.81,159.48,159.4,6.9927]
[1752324653924,18.75,159.46,159.4,6.3427]
[1752324654122,4.02896068,159.45,159.4,6.3427]
[1752324654342,4.02896068,159.45,159.4,6.9927]
[1752324654755,22.83896068,159.45,159.4,6.3427]
[1752324654966,4.02896068,159.44,159.4,6.3427]
[1752324655929,18.75,159.44,159.4,6.3427]
[1752324656132,4.02896068,159.43,159.4,6.3427]
[1752324656328,4.02896068,159.43,159.4,6.4027]
[1752324656524,4.08896068,159.47,159.4,6.4027]
[1752324656742,18.81,159.46,159.4,0.06]
[1752324656946,18.75,159.44,159.33,1.5259]
[1752324657256,35.53468397,159.42,159.33,1.5259]
[1752324657453,22.77896068,159.41,159.33,1.5259]
[1752324657647,4.02896068,159.4,159.33,1.5259]
[1752324657832,4.02896068,159.4,159.34,0.65]
[1752324658160,18.75,159.44,159.34,0.65]
[1752324658161,4.02896068,159.43,159.34,0.65]
[1752324659062,2.509646,159.49,159.34,0.65]
[1752324659063,4.02896068,159.46,159.34,0.65]
[1752324659229,4.02896068,159.47,159.34,0.65]
[1752324659837,4.02896068,159.48,159.35,6.0513]
[1752324660061,4.05550081,159.48,159.36,0.65]
[1752324660243,4.05550081,159.47,159.36,0.65]
[1752324660445,4.05550081,159.48,159.36,0.65]
[1752324661065,0.03,159.51,159.37,16.78468397]
[1752324661066,4.05550081,159.5,159.37,16.78468397]
[1752324661253,4.05550081,159.5,159.39,1.5534]
[1752324661466,4.05550081,159.5,159.4,0.65]
[1752324661761,0.03,159.51,159.42,16.78468397]
[1752324661958,4.05550081,159.57,159.43,2.2034]
[1752324662259,4.05550081,159.58,159.44,17.43468397]
[1752324662501,0.03,159.59,159.45,0.65]
[1752324662781,4.05550081,159.58,159.45,0.65]
[1752324662939,4.05550081,159.58,159.46,16.78468397]
[1752324663251,4.05550081,159.58,159.48,16.78468397]
[1752324663444,4.05550081,159.58,159.49,0.65]
[1752324663646,4.05550081,159.57,159.49,0.65]
[1752324663866,16.78468397,159.55,159.43,2.2034]
[1752324664055,35.53468397,159.53,159.43,2.2034]
[1752324664249,4.05550081,159.52,159.44,0.65]
[1752324664458,16.78468397,159.57,159.44,0.65]
[1752324664657,4.05550081,159.56,159.44,0.65]
[1752324665043,145.5,159.55,159.44,0.65]
[1752324665245,4.05550081,159.54,159.44,0.65]
[1752324665460,145.5,159.53,159.44,0.65]
[1752324665671,149.55550081,159.52,159.44,0.65]
[1752324665846,4.05550081,159.51,159.44,0.65]
[1752324666378,145.5,159.58,159.45,16.78468397]
[1752324666574,145.5,159.58,159.47,16.78468397]
[1752324666741,145.5,159.58,159.48,0.65]
[1752324667362,145.5,159.58,159.49,16.78468397]
[1752324667559,145.5,159.58,159.5,0.65]
[1752324667766,16.78468397,159.57,159.47,0.65]
[1752324668168,16.78468397,159.57,159.46,6.1595]
[1752324668653,16.78468397,159.57,159.46,6.8095]
[1752324669242,16.78468397,159.57,159.46,6.1595]
[1752324669437,16.78468397,159.55,159.46,6.1595]
[1752324669642,145.5,159.58,159.47,0.65]
[1752324669866,16.78468397,159.57,159.47,0.65]
[1752324670083,145.5,159.58,159.47,0.65]
[1752324670571,145.5,159.58,159.48,16.78468397]
[1752324670757,145.5,159.58,159.49,0.65]
[1752324671873,0.03,159.59,159.5,16.78468397]
[1752324672064,0.03,159.59,159.51,6.9476]
[1752324672269,0.03,159.59,159.52,16.78468397]
[1752324672584,0.03,159.59,159.53,1.6242]
[1752324672878,0.03,159.59,159.53,2.2742]
[1752324673045,0.03,159.59,159.53,1.6242]
[1752324673246,0.03,159.59,159.54,0.65]
[1752324673467,0.03,159.59,159.53,1.6242]
[1752324674367,0.03,159.59,159.54,0.69]
[1752324674767,0.03,159.59,159.55,0.69]
[1752324675172,0.03,159.59,159.56,0.69]
[1752324675673,0.03,159.59,159.53,2.3142]
[1752324676381,0.03,159.59,159.53,1.6242]
[1752324676553,0.03,159.59,159.54,0.69]
[1752324676976,0.03,159.59,159.55,0.69]
[1752324677383,145.03,159.63,159.56,0.69]
[1752324677674,145.03,159.62,159.56,0.69]
[1752324678459,4.07143838,159.61,159.56,0.69]
[1752324679054,4.07143838,159.61,159.57,0.69]
[1752324679253,4.07143838,159.61,159.55,0.69]
[1752324679482,4.07143838,159.61,159.53,1.6242]
[1752324679655,145.03,159.6,159.53,1.6242]
[1752324679860,4.07143838,159.59,159.53,2.3142]
[1752324680692,4.07143838,159.59,159.54,0.69]
[1752324680993,4.07143838,159.59,159.55,0.69]
[1752324681300,4.07143838,159.59,159.56,0.69]
[1752324681482,4.07143838,159.59,159.53,1.6242]
[1752324681483,4.07143838,159.59,159.57,0.69]
[1752324681673,4.07143838,159.59,159.58,0.69]
[1752324682494,0.03,159.62,159.58,0.69]
[1752324682794,0.03,159.62,159.59,0.69]
[1752324682991,0.03,159.62,159.55,0.69]
[1752324683392,145.03,159.61,159.53,1.6242]
[1752324683597,149.10143838,159.6,159.53,1.6242]
[1752324683802,4.07143838,159.59,159.53,1.6242]
[1752324684098,149.10143838,159.59,159.52,0.69]
[1752324684269,149.10143838,159.58,159.51,6.2976]
[1752324684591,4.07143838,159.57,159.51,6.2976]
[1752324684771,145.03,159.56,159.51,6.2976]
[1752324684963,4.07143838,159.55,159.51,6.2976]
[1752324686382,4.07143838,159.55,159.52,0.69]
[1752324688171,4.07143838,159.6,159.52,0.69]
[1752324688367,4.07143838,159.6,159.53,0.69]
[1752324688574,4.10143838,159.62,159.53,0.69]
[1752324690076,18.8,159.6,159.51,6.2976]
[1752324690285,4.07143838,159.59,159.52,0.69]
[1752324690508,4.07143838,159.61,159.52,0.69]
[1752324690994,4.10143838,159.62,159.52,0.69]
[1752324692540,22.90143838,159.62,159.52,0.69]
[1752324692700,4.07143838,159.61,159.52,0.69]
[1752324692882,4.10143838,159.62,159.52,0.69]
[1752324694186,4.10143838,159.62,159.52,17.47468397]
[1752324694382,4.10143838,159.62,159.53,0.69]
[1752324695001,35.58468397,159.61,159.51,6.2976]
[1752324695311,35.58468397,159.61,159.46,6.1418]
[1752324695312,18.8,159.57,159.46,6.1418]
[1752324695517,22.87143838,159.56,159.46,6.1418]
[1752324695681,22.87143838,159.55,159.46,6.1418]
[1752324695880,22.87143838,159.54,159.46,6.1418]
[1752324696184,4.07143838,159.53,159.46,6.1418]
[1752324696399,22.87143838,159.54,159.46,6.1418]
[1752324696595,22.87143838,159.54,159.42,6.4466]
[1752324696596,4.07143838,159.53,159.42,6.4466]
[1752324696802,35.58468397,159.52,159.42,6.4466]
[1752324696989,22.87143838,159.51,159.42,6.4466]
[1752324697188,4.07143838,159.5,159.42,6.4466]
[1752324697398,22.87143838,159.5,159.42,6.4466]
[1752324697613,4.07143838,159.49,159.42,6.4466]
[1752324697787,35.58468397,159.48,159.38,6.4466]
[1752324697988,162.87143838,159.47,159.38,6.4466]
[1752324698201,4.07143838,159.46,159.38,6.4466]
[1752324698812,4.07143838,159.46,159.39,0.69]
[1752324700033,4.07143838,159.46,159.4,16.78468397]
[1752324700189,4.07143838,159.46,159.41,0.69]
[1752324700598,145.03,159.56,159.42,16.78468397]
[1752324700599,4.07143838,159.55,159.42,16.78468397]
[1752324700798,4.07143838,159.55,159.44,16.78468397]
[1752324701024,4.07143838,159.57,159.45,0.69]
[1752324701215,18.8,159.57,159.45,0.69]
[1752324701522,4.07143838,159.56,159.45,0.69]
[1752324703024,4.07143838,159.57,159.45,0.69]
[1752324703192,4.07143838,159.56,159.45,0.69]
[1752324703392,4.07143838,159.57,159.45,0.69]
[1752324703595,4.07143838,159.56,159.45,0.69]
[1752324703812,4.07143838,159.55,159.45,0.69]
[1752324704090,4.07143838,159.54,159.45,0.69]
[1752324704290,4.07143838,159.57,159.45,0.69]
[1752324704516,4.07143838,159.56,159.45,0.69]
[1752324704733,4.07143838,159.58,159.45,0.69]
[1752324705016,4.07143838,159.57,159.45,0.69]
[1752324705210,4.07143838,159.56,159.46,16.78468397]
[1752324705420,4.07143838,159.58,159.47,6.8242]
[1752324705611,4.07143838,159.57,159.47,6.8242]
[1752324705788,4.07143838,159.56,159.47,6.8242]
[1752324705990,4.07143838,159.55,159.47,6.8242]
[1752324706214,4.07143838,159.59,159.48,0.71]
[1752324706411,4.07143838,159.58,159.48,0.71]
[1752324706611,16.78468397,159.61,159.48,0.71]
[1752324706612,4.07143838,159.57,159.48,0.71]
[1752324706806,4.07143838,159.6,159.48,0.71]
[1752324707005,4.07143838,159.59,159.48,0.71]
[1752324707214,4.07143838,159.58,159.48,0.71]
[1752324707395,16.78468397,159.61,159.48,0.71]
[1752324707396,4.07143838,159.57,159.48,0.71]
[1752324707711,4.07143838,159.56,159.47,6.1142]
[1752324707915,4.07143838,159.55,159.47,6.1142]
[1752324708121,16.78468397,159.58,159.47,6.1142]
[1752324708315,4.07143838,159.57,159.47,6.8242]
[1752324708622,16.78468397,159.58,159.47,6.8242]
[1752324708623,4.07143838,159.56,159.47,6.1142]
[1752324708796,175.58468397,159.6,159.47,6.1142]
[1752324708797,4.07143838,159.55,159.47,6.1142]
[1752324708996,4.07143838,159.54,159.47,6.1142]
[1752324709210,16.78468397,159.57,159.47,6.1142]
[1752324709514,4.07143838,159.56,159.47,6.1142]
[1752324709714,4.07143838,159.55,159.47,6.1142]
[1752324709926,4.07143838,159.54,159.47,6.1142]
[1752324710223,140.0,159.6,159.47,6.1142]
[1752324710224,4.07143838,159.56,159.47,6.1142]
[1752324710425,4.07143838,159.55,159.47,6.1142]
[1752324710620,4.07143838,159.54,159.47,6.1142]
[1752324710808,4.07143838,159.53,159.47,6.1142]
[1752324711007,20.85612235,159.57,159.47,6.1142]
[1752324711209,4.07143838,159.56,159.47,6.1142]
[1752324711512,4.07143838,159.55,159.47,6.1142]
[1752324711711,1.549,159.53,159.38,6.033]
[1752324711912,39.65612235,159.52,159.38,6.033]
[1752324712097,16.78468397,159.5,159.38,6.033]
[1752324712299,4.07143838,159.49,159.38,6.033]
[1752324712614,4.07143838,159.48,159.38,6.033]
[1752324712821,4.07143838,159.47,159.39,0.71]
[1752324713124,1.549,159.53,159.39,0.71]
[1752324713125,4.07143838,159.5,159.39,0.71]
[1752324713424,4.07143838,159.49,159.39,0.71]
[1752324713630,4.07143838,159.51,159.39,0.71]
[1752324713836,4.07143838,159.5,159.39,0.71]
[1752324714046,4.07143838,159.49,159.39,0.71]
[1752324714331,4.07143838,159.48,159.39,0.71]
[1752324714539,4.07143838,159.51,159.39,0.71]
[1752324714827,4.07143838,159.5,159.39,0.71]
[1752324714999,39.65612235,159.49,159.38,6.033]
[1752324715199,4.07143838,159.48,159.38,6.033]
[1752324715509,20.85612235,159.47,159.38,6.033]
[1752324715722,4.07143838,159.46,159.36,0.2]
[1752324717314,16.78468397,159.45,159.36,0.2]
[1752324717522,4.07143838,159.44,159.36,0.2]
[1752324717899,1.549,159.42,159.3,31.0132076]
[1752324718098,35.58468397,159.39,159.26,31.55300037]
[1752324718318,35.58468397,159.37,159.26,31.55300037]
[1752324718534,22.87143838,159.36,159.26,31.55300037]
[1752324718739,4.07143838,159.35,159.26,31.55300037]
[1752324719102,22.87143838,159.35,159.26,31.55300037]
[1752324719331,18.8,159.35,159.26,31.55300037]
[1752324719520,18.8,159.35,159.23,31.70716353]
[1752324719727,6.5489,159.36,159.23,31.70716353]
[1752324719906,18.8,159.35,159.23,31.70716353]
[1752324720233,18.8,159.35,159.23,32.41716353]
[1752324720401,18.8,159.35,159.25,31.05167971]
[1752324720608,6.5489,159.41,159.27,31.00160255]
[1752324720917,18.8,159.39,159.27,31.00160255]
[1752324721434,304.328255,159.4,159.29,31.39102791]
[1752324721435,145.5,159.4,159.29,31.39102791]
[1752324721737,18.82471,159.43,159.31,31.39141069]
[1752324722115,6.6085,159.46,159.33,31.5156509]
[1752324722420,18.822349,159.46,159.34,0.71]
[1752324722601,16.78468397,159.46,159.34,0.71]
[1752324723503,18.819987,159.47,159.34,0.71]
[1752324723704,16.78468397,159.49,159.34,0.71]
[1752324723922,35.60230997,159.49,159.34,0.71]
[1752324724132,35.60230997,159.49,159.35,16.78468397]
[1752324724308,18.817626,159.49,159.37,6.038]
[1752324724512,18.817626,159.49,159.38,0.71]
[1752324724817,8.53603471,159.5,159.38,0.71]
[1752324725402,16.78468397,159.49,159.38,0.71]
[1752324725607,16.78468397,159.49,159.37,6.038]
[1752324725903,16.78468397,159.49,159.33,31.5156509]
[1752324725904,35.58468397,159.49,159.33,31.5156509]
[1752324726105,45.58468396,159.49,159.33,37.9539509]
[1752324726338,42.18428397,159.46,159.33,37.9539509]
[1752324726809,52.18428396,159.46,159.3,31.0132076]
[1752324727010,35.58468397,159.44,159.3,31.0132076]
[1752324727207,16.78468397,159.4,159.29,31.39102791]
[1752324727424,16.78468397,159.38,159.29,31.39102791]
[1752324730821,16.78468397,159.39,159.29,31.39102791]
[1752324731235,22.85213953,159.38,159.29,31.39102791]
[1752324731439,4.05213953,159.37,159.29,31.39102791]
[1752324731809,4.05213953,159.37,159.29,32.10102791]
[1752324732131,4.05213953,159.39,159.31,31.39141069]
[1752324732433,4.05213953,159.41,159.31,31.39141069]
[1752324732730,4.05213953,159.41,159.33,31.5156509]
[1752324732903,4.05213953,159.42,159.34,0.71]
[1752324733110,4.05213953,159.43,159.34,0.71]
[1752324733605,4.05213953,159.45,159.35,6.1853]
[1752324733913,1.5199,159.52,159.36,0.71]
[1752324733914,18.818806,159.48,159.36,0.71]
[1752324734114,4.05213953,159.47,159.36,0.71]
[1752324734738,4.05213953,159.48,159.36,0.71]
[1752324734937,26.90331871,159.5,159.36,0.71]
[1752324734938,4.05213953,159.49,159.36,0.71]
[1752324735314,8.53603471,159.5,159.37,16.78468397]
[1752324735509,8.53603471,159.5,159.38,0.7]
[1752324735721,145.5,159.49,159.38,0.7]
[1752324736031,4.05213953,159.48,159.39,16.78468397]
[1752324736238,4.05213953,159.48,159.4,7.1462]
[1752324736417,4.05213953,159.48,159.41,0.7]
[1752324739534,145.5,159.47,159.41,0.7]
[1752324739737,4.05213953,159.46,159.41,0.7]
[1752324740213,4.05213953,159.46,159.42,0.7]
[1752324740615,4.05213953,159.46,159.4,7.1462]
[1752324741407,4.05213953,159.46,159.4,6.4462]
[1752324742439,145.5,159.45,159.4,6.4462]
[1752324742632,4.05213953,159.44,159.4,6.4462]
[1752324747025,22.85213953,159.44,159.35,7.0603]
[1752324747218,168.35213953,159.43,159.35,7.0603]
[1752324747545,18.8,159.41,159.35,7.0603]
[1752324747725,22.85213953,159.4,159.35,6.3603]
[1752324747922,149.55213953,159.39,159.35,6.3603]
[1752324748138,149.55213953,159.38,159.35,6.3603]
[1752324748340,22.85213953,159.37,159.34,0.06]
[1752324748549,22.85213953,159.36,159.34,0.06]
[1752324748846,164.3,159.38,159.34,0.06]
[1752324749050,4.06363947,159.37,159.34,0.06]
[1752324749242,4.06363947,159.37,159.35,0.7]
[1752324749757,4.06363947,159.37,159.34,0.06]
[1752324750347,4.06363947,159.37,159.34,0.76]
[1752324750514,4.06363947,159.37,159.35,0.7]
[1752324751318,4.06363947,159.37,159.36,0.7]
[1752324751633,145.5,159.38,159.36,0.7]
[1752324752114,145.5,159.38,159.37,0.7]
[1752324753946,145.5,159.38,159.34,0.76]
[1752324754115,145.5,159.38,159.35,0.7]
[1752324754535,145.5,159.38,159.36,0.7]
[1752324754737,145.5,159.38,159.34,0.06]
[1752324754945,4.0769055,159.37,159.34,0.06]
[1752324755954,4.0769055,159.37,159.34,0.76]
[1752324756323,4.0769055,159.37,159.35,0.7]
[1752324758724,4.0769055,159.37,159.34,0.06]
[1752324759849,145.5,159.36,159.34,0.06]
[1752324760041,4.0769055,159.35,159.34,0.06]
[1752324760644,22.8769055,159.35,159.34,0.06]
[1752324760950,39.66158947,159.35,159.34,0.06]
[1752324761728,22.8769055,159.35,159.34,0.06]
[1752324762757,4.0769055,159.35,159.34,0.06]
[1752324762944,10.9370055,159.38,159.34,0.06]
[1752324763146,25.6601,159.38,159.34,0.06]
[1752324763352,4.0769055,159.37,159.34,0.06]
[1752324763931,22.8769055,159.37,159.34,0.06]
[1752324764134,22.8769055,159.36,159.34,0.06]
[1752324764363,4.0769055,159.35,159.34,0.06]
[1752324764859,4.0769055,159.36,159.34,0.06]
[1752324766069,22.8769055,159.36,159.34,0.06]
[1752324766258,4.0769055,159.35,159.34,0.06]
[1752324766860,18.8,159.39,159.34,0.06]
[1752324767062,18.8,159.37,159.34,0.06]
[1752324767242,4.0769055,159.36,159.34,0.06]
[1752324769530,4.0769055,159.37,159.34,0.06]
[1752324770352,18.8,159.37,159.34,0.06]
[1752324770548,4.0769055,159.36,159.34,0.06]
[1752324771535,18.8,159.37,159.34,0.06]
[1752324771736,4.0769055,159.36,159.34,0.06]
[1752324772571,22.8769055,159.36,159.34,0.06]
[1752324772736,4.0769055,159.35,159.34,0.06]
[1752324773362,4.0769055,159.35,159.34,0.76]
[1752324773660,0.03,159.38,159.34,0.06]
[1752324774047,4.1069055,159.38,159.34,0.06]
[1752324775061,0.03,159.38,159.34,0.76]
[1752324776266,18.83,159.38,159.34,0.76]
[1752324776566,4.0769055,159.37,159.34,0.76]
[1752324777143,4.0769055,159.37,159.35,0.7]
[1752324777338,0.03,159.38,159.36,0.7]
[1752324777654,0.03,159.38,159.37,0.7]
[1752324779267,0.03,159.38,159.34,0.06]
[1752324779471,22.9069055,159.38,159.34,0.06]
[1752324779683,4.0769055,159.37,159.34,0.06]
[1752324780041,22.8769055,159.37,159.34,0.06]
[1752324780391,168.3769055,159.36,159.34,0.06]
[1752324780585,22.8769055,159.35,159.34,0.06]
[1752324781075,4.0769055,159.35,159.34,0.06]
[1752324781246,4.0769055,159.35,159.34,0.76]
[1752324781753,0.03,159.38,159.34,0.76]
[1752324782774,0.03,159.38,159.34,0.06]
[1752324783145,0.03,159.38,159.34,0.76]
[1752324783766,0.03,159.38,159.34,0.35258158]
[1752324783972,0.03,159.38,159.28,16.78468397]
[1752324785657,0.03,159.38,159.3,16.78468397]
[1752324785859,0.03,159.38,159.32,16.78468397]
[1752324786068,0.03,159.38,159.33,0.7]
[1752324787476,0.03,159.38,159.34,16.78468397]
[1752324787772,0.03,159.38,159.35,0.7]
[1752324788274,0.03,159.38,159.36,0.7]
[1752324788757,0.03,159.38,159.34,0.7]
[1752324789152,0.03,159.38,159.31,9.7095]
[1752324789153,0.03,159.38,159.35,0.7]
[1752324789360,0.03,159.38,159.33,0.06]